bitfinex-derivatives/quotes_SOLF0:USTF0_20250907
["timestamp","ask_amount","ask_price","bid_price","bid_amount"]
[1757273277204,7.8662371,202.19,202.17,110.74]
[1757273277407,7.8662371,202.19,202.16,4.04]
[1757273277607,7.8662371,202.19,202.17,110.74]
[1757273278004,7.8662371,202.19,202.17,114.78]
[1757273278208,7.8662371,202.19,202.17,4.04]
[1757273278412,7.8662371,202.19,202.17,113.36]
[1757273279507,0.0362371,202.19,202.18,4.04]
[1757273283111,0.0362371,202.19,202.18,80.92]
[1757273284918,0.0362371,202.19,202.18,4.04]
[1757273285116,0.0362371,202.19,202.18,125.3]
[1757273286011,0.0362371,202.19,202.18,4.04]
[1757273286209,0.0362371,202.19,202.18,125.3]
[1757273290317,7.77,202.27,202.19,4.02]
[1757273290514,7.77,202.27,202.21,4.02]
[1757273291610,7.77,202.27,202.23,4.02]
[1757273291813,7.77,202.27,202.24,125.28]
[1757273293414,7.77,202.27,202.24,4.02]
[1757273293723,8.29474101,202.25,202.22,0.03115208]
[1757273293924,13.28406582,202.23,202.22,0.03115208]
[1757273294521,7.77,202.23,202.22,0.03115208]
[1757273298624,16.56474101,202.23,202.22,0.03115208]
[1757273299425,13.28975983,202.23,202.22,0.03115208]
[1757273299621,7.77,202.23,202.22,0.03115208]
[1757273303221,16.06474101,202.23,202.22,0.03115208]
[1757273304325,7.77,202.23,202.22,0.03115208]
[1757273307225,7.77,202.23,202.22,0.00365503]
[1757273316236,8.32082622,202.25,202.22,0.00365503]
[1757273316431,8.32082622,202.25,202.22,4.03365503]
[1757273316637,5.54609447,202.23,202.22,4.03365503]
[1757273316837,5.54609447,202.23,202.22,8.62423258]
[1757273317835,5.54609447,202.23,202.22,8.62338345]
[1757273318237,5.54609447,202.23,202.22,4.03365503]
[1757273318437,8.32082622,202.25,202.22,4.03365503]
[1757273318638,5.54502979,202.23,202.22,4.03365503]
[1757273320239,5.54502979,202.23,202.22,8.62219232]
[1757273322341,5.54502979,202.23,202.22,125.27365503]
[1757273323144,5.54502979,202.23,202.22,129.87682603]
[1757273324846,5.54502979,202.23,202.22,8.63682603]
[1757273325042,5.54502979,202.23,202.22,129.87682603]
[1757273325945,5.54502979,202.23,202.22,8.63682603]
[1757273326145,5.54502979,202.23,202.22,129.87682603]
[1757273327044,13.03261686,202.26,202.2,121.24]
[1757273327342,8.07,202.23,202.2,121.24]
[1757273327539,13.03261686,202.24,202.2,121.24]
[1757273327941,1.97296218,202.24,202.17,1.97296218]
[1757273328249,5.54509682,202.2,202.18,121.22]
[1757273328448,5.54509682,202.21,202.19,1.97296218]
[1757273328641,13.61509682,202.22,202.19,1.97296218]
[1757273329137,13.61509682,202.22,202.2,0.94]
[1757273331250,5.54509682,202.21,202.2,0.94]
[1757273331544,13.61509682,202.22,202.2,0.94]
[1757273332149,8.07,202.24,202.19,121.22]
[1757273332350,8.31871116,202.2,202.19,121.22]
[1757273333048,16.38871116,202.2,202.19,121.22]
[1757273333439,8.07,202.19,202.13,333.46]
[1757273333647,5.54519653,202.16,202.15,0.94]
[1757273334350,5.54519653,202.16,202.15,122.16]
[1757273335453,13.61519653,202.16,202.14,1.97296218]
[1757273335654,13.61519653,202.16,202.15,121.22]
[1757273336453,5.54519653,202.16,202.15,121.22]
[1757273337252,5.54519653,202.17,202.15,122.16]
[1757273337550,13.61519653,202.17,202.14,1.97296218]
[1757273337755,5.54519653,202.17,202.16,0.94]
[1757273337956,5.54519653,202.18,202.16,122.16]
[1757273338254,13.61519653,202.18,202.16,124.13296218]
[1757273341854,13.61519653,202.18,202.16,2.91296218]
[1757273342051,13.61519653,202.18,202.17,121.22]
[1757273345954,5.54519653,202.18,202.17,121.22]
[1757273346460,5.54519653,202.18,202.17,122.15]
[1757273347757,5.54519653,202.18,202.17,0.93]
[1757273347952,8.31871116,202.19,202.17,122.15]
[1757273348152,16.37871116,202.19,202.17,122.15]
[1757273350551,8.31871116,202.19,202.16,1.97296218]
[1757273350753,8.06,202.18,202.16,1.97296218]
[1757273351855,8.31871116,202.19,202.16,1.97296218]
[1757273352154,8.31871116,202.19,202.14,2.90296218]
[1757273352357,5.54396954,202.16,202.14,2.90296218]
[1757273354660,13.60396954,202.16,202.14,2.90296218]
[1757273356656,8.06,202.15,202.14,1.97296218]
[1757273356862,5.54396954,202.16,202.14,2.90296218]
[1757273357258,13.60396954,202.16,202.14,2.90296218]
[1757273357459,5.54396954,202.16,202.15,0.93]
[1757273359564,5.54396954,202.16,202.14,2.90296218]
[1757273360966,13.60396954,202.16,202.14,2.90296218]
[1757273364068,8.06,202.15,202.14,1.97296218]
[1757273365364,13.60396954,202.16,202.14,123.15296218]
[1757273365561,13.60396954,202.16,202.14,1.97296218]
[1757273365765,8.06,202.15,202.14,56.63296218]
[1757273366267,13.60396954,202.15,202.14,1.97296218]
[1757273366969,5.54396954,202.15,202.14,2.90296218]
[1757273368068,5.54396954,202.15,202.14,124.08296218]
[1757273368272,13.60396954,202.16,202.14,132.851203]
[1757273368474,13.60396954,202.16,202.15,1.97296218]
[1757273369268,13.60396954,202.16,202.15,10.74358609]
[1757273369466,5.54396954,202.17,202.15,11.67358609]
[1757273369671,5.54396954,202.17,202.16,11.67358609]
[1757273370173,5.54396954,202.18,202.16,11.67358609]
[1757273370372,13.60396954,202.18,202.17,8.77062391]
[1757273370573,13.60396954,202.18,202.16,2.90296218]
[1757273370973,13.60396954,202.18,202.17,4.31574785]
[1757273371374,8.06,202.18,202.17,4.31574785]
[1757273372071,8.06,202.18,202.17,8.77625402]
[1757273372374,8.06,202.18,202.17,4.45836547]
[1757273372774,8.06,202.18,202.16,2.90296218]
[1757273372967,5.55395917,202.17,202.16,2.90296218]
[1757273373574,5.55395917,202.17,202.16,11.67890426]
[1757273374970,5.55395917,202.18,202.17,0.93]
[1757273375283,5.55395917,202.18,202.17,11.67890426]
[1757273376279,8.31871116,202.2,202.17,9.70594208]
[1757273376473,15.95871116,202.2,202.18,8.77594208]
[1757273376673,15.95871116,202.2,202.19,8.77594208]
[1757273377072,7.64,202.19,202.17,30.22]
[1757273377279,8.31871116,202.18,202.16,52.18]
[1757273377469,7.64,202.17,202.16,52.18]
[1757273377674,7.64,202.17,202.16,56.51348942]
[1757273378881,7.64,202.17,202.16,8.77274983]
[1757273379677,7.64,202.17,202.16,4.43926041]
[1757273385683,7.64,202.18,202.13,121.29343688]
[1757273385884,13.19747504,202.16,202.14,0.93]
[1757273387985,5.55747504,202.16,202.13,121.14]
[1757273388184,11.05965468,202.24,202.13,121.14]
[1757273388185,13.19747504,202.15,202.13,121.14]
[1757273388584,13.19747504,202.15,202.12,4.01343688]
[1757273388780,5.55747504,202.15,202.12,124.20343688]
[1757273389385,5.55747504,202.15,202.13,0.93]
[1757273389687,5.55747504,202.16,202.15,0.93]
[1757273389886,5.55747504,202.16,202.15,5.38586545]
[1757273391685,5.55747504,202.16,202.15,0.93]
[1757273393479,5.55747504,202.16,202.14,121.12]
[1757273393684,13.19747504,202.16,202.14,122.05]
[1757273393882,5.55747504,202.16,202.15,0.93]
[1757273394686,13.19747504,202.16,202.15,121.12]
[1757273397092,13.19747504,202.16,202.13,0.93]
[1757273397390,5.55747504,202.16,202.14,0.93]
[1757273398291,13.19747504,202.16,202.14,0.93]
[1757273399590,13.19747504,202.16,202.14,58.55]
[1757273400390,5.55747504,202.16,202.14,112.36]
[1757273400593,13.19747504,202.15,202.14,121.1]
[1757273403093,5.55747504,202.15,202.14,122.03]
[1757273403690,5.55747504,202.15,202.14,0.93]
[1757273403889,13.19747504,202.15,202.14,121.08]
[1757273405494,13.19747504,202.15,202.07,0.93]
[1757273405698,13.47747504,202.13,202.11,3.08343688]
[1757273405890,13.47747504,202.13,202.12,121.08]
[1757273406195,13.47747504,202.14,202.12,121.08]
[1757273407994,5.55747504,202.13,202.12,121.08]
[1757273408393,5.55747504,202.13,202.1,3.08343688]
[1757273408696,13.47747504,202.14,202.12,0.93]
[1757273409393,5.55747504,202.14,202.12,0.93]
[1757273409592,5.55747504,202.14,202.13,4.01343688]
[1757273410695,5.55747504,202.15,202.14,0.93]
[1757273414394,5.55747504,202.15,202.13,4.01343688]
[1757273415897,5.55747504,202.15,202.13,3.08343688]
[1757273416105,7.92,202.14,202.12,3.08343688]
[1757273416403,7.92,202.14,202.13,121.06]
[1757273417508,5.55747504,202.15,202.13,121.06]
[1757273417806,7.92,202.14,202.13,121.06]
[1757273418107,7.92,202.14,202.12,3.08343688]
[1757273418306,7.92,202.14,202.13,121.06]
[1757273418502,7.92,202.14,202.12,3.08343688]
[1757273418700,7.92,202.14,202.13,121.06]
[1757273421909,13.47747504,202.15,202.13,121.06]
[1757273422508,13.47747504,202.15,202.13,121.99]
[1757273424610,13.47747504,202.15,202.13,0.93]
[1757273424810,7.92,202.15,202.14,121.04]
[1757273425709,7.92,202.15,202.13,0.93]
[1757273425910,5.5634553,202.14,202.13,0.93]
[1757273426107,5.5634553,202.14,202.13,116.45]
[1757273427112,13.4834553,202.15,202.13,116.45]
[1757273428412,5.5634553,202.14,202.13,116.45]
[1757273429814,13.4834553,202.15,202.13,116.45]
[1757273431108,13.4834553,202.15,202.14,4.43897957]
[1757273431818,7.92,202.15,202.14,78.93897957]
[1757273432010,7.92,202.15,202.14,74.5]
[1757273434312,8.31871116,202.17,202.15,0.92]
[1757273434615,8.31871116,202.18,202.14,74.5]
[1757273434812,7.92,202.17,202.15,0.92]
[1757273435215,5.56354302,202.16,202.15,0.92]
[1757273438313,5.56354302,202.16,202.15,2.89379963]
[1757273438518,5.56354302,202.16,202.15,0.92]
[1757273438722,5.56354302,202.16,202.15,2.89379963]
[1757273439019,13.58354302,202.16,202.15,1.97379963]
[1757273439214,13.58354302,202.16,202.14,99.56]
[1757273439420,13.58354302,202.16,202.15,1.97379963]
[1757273440516,5.56354302,202.16,202.15,1.97379963]
[1757273440716,5.56354302,202.16,202.15,2.90379963]
[1757273441723,13.58354302,202.16,202.15,1.97379963]
[1757273446024,8.02,202.15,202.14,1.97379963]
[1757273448017,13.58172022,202.15,202.14,1.97379963]
[1757273458532,13.58172022,202.15,202.14,2.90379963]
[1757273458733,13.58172022,202.15,202.14,1.97379963]
[1757273462529,5.56172022,202.16,202.14,1.97379963]
[1757273462734,13.58172022,202.17,202.15,2.90379963]
[1757273464135,8.02,202.16,202.15,1.97379963]
[1757273478152,5.59344786,202.18,202.12,70.16]
[1757273478351,13.40344786,202.18,202.17,1.97379963]
[1757273494071,5.59344786,202.18,202.14,0.93]
[1757273494266,5.59344786,202.18,202.17,1.97379963]
[1757273494267,13.40344786,202.18,202.17,1.97379963]
[1757273494470,7.84172764,202.18,202.17,6.54428676]
[1757273496570,7.84172764,202.18,202.17,1.97379963]
[1757273500273,7.84172764,202.18,202.16,3.08337379]
[1757273501175,0.03172764,202.18,202.17,0.93]
[1757273501575,8.25172764,202.18,202.17,120.78]
[1757273503076,8.25172764,202.18,202.17,120.76]
[1757273504075,8.22,202.17,202.16,3.08337379]
[1757273504276,8.22,202.17,202.16,123.84337379]
[1757273505177,8.22,202.17,202.16,124.77337379]
[1757273505780,8.25172764,202.18,202.16,124.77337379]
[1757273507978,8.25172764,202.18,202.17,0.93]
[1757273508375,8.25172764,202.18,202.17,121.69]
[1757273512383,0.03172764,202.18,202.17,121.69]
[1757273512575,0.03172764,202.18,202.17,120.74]
[1757273512781,8.25172764,202.18,202.17,120.74]
[1757273513484,0.03172764,202.18,202.17,121.67]
[1757273517285,5.56172022,202.25,202.18,0.9]
[1757273517586,5.56172022,202.26,202.24,3.08337379]
[1757273517781,5.56172022,202.27,202.25,130.70211512]
[1757273517981,5.56172022,202.27,202.26,9.98211512]
[1757273518386,5.56172022,202.28,202.27,0.9]
[1757273518586,16.53871116,202.31,202.27,13.06548891]
[1757273518787,16.53871116,202.31,202.28,0.9]
[1757273519190,8.22,202.31,202.28,0.9]
[1757273521691,8.22,202.32,202.28,0.9]
[1757273521893,8.31871116,202.33,202.28,120.7]
[1757273522092,8.22,202.32,202.28,120.7]
[1757273522294,8.31871116,202.33,202.28,120.7]
[1757273522593,8.22,202.32,202.28,120.73597982]
[1757273522789,8.22,202.32,202.28,0.03597982]
[1757273523198,16.53871116,202.32,202.28,0.03597982]
[1757273523400,8.22,202.32,202.28,0.03597982]
[1757273523596,16.53871116,202.32,202.28,0.03597982]
[1757273526001,8.22,202.32,202.28,0.03597982]
[1757273527295,8.31871116,202.34,202.28,0.03597982]
[1757273527497,8.31871116,202.34,202.29,0.9]
[1757273527695,8.31871116,202.37,202.29,0.9]
[1757273527897,314.0,202.49,202.28,17.93597982]
[1757273527898,8.31871116,202.33,202.28,17.93597982]
[1757273528093,7.95,202.33,202.28,17.9]
[1757273528296,7.95,202.33,202.28,0.03533382]
[1757273529098,11.05965468,202.3,202.28,0.00261198]
[1757273529306,7.95,202.29,202.19,3.98337379]
[1757273529599,7.95,202.27,202.2,4.57194726]
[1757273529799,7.95,202.27,202.21,8.98090322]
[1757273529989,7.95,202.27,202.19,3.98337379]
[1757273530196,7.95,202.27,202.2,8.9795715]
[1757273530397,7.95,202.27,202.21,8.9795715]
[1757273530698,7.95,202.27,202.19,3.98337379]
[1757273530996,8.30452388,202.28,202.22,3.08337379]
[1757273531201,8.30452388,202.29,202.23,0.9]
[1757273531702,16.25452388,202.3,202.23,0.9]
[1757273532396,3.08337379,202.34,202.2,10.58]
[1757273532397,3.08337379,202.28,202.2,10.58]
[1757273532595,16.25452388,202.21,202.18,0.9]
[1757273533201,7.95,202.21,202.18,0.9]
[1757273533398,3.08337379,202.28,202.19,4.59989653]
[1757273533399,8.30452388,202.26,202.19,4.59989653]
[1757273533603,7.95,202.25,202.17,3.98337379]
[1757273534605,7.95,202.25,202.17,23.62337379]
[1757273534801,7.95,202.25,202.17,3.98337379]
[1757273535006,7.95,202.25,202.17,42.28337379]
[1757273535308,16.25452388,202.25,202.17,42.28337379]
[1757273535801,16.25452388,202.25,202.18,4.51859817]
[1757273536004,16.25452388,202.25,202.17,42.28337379]
[1757273536307,16.25452388,202.25,202.18,4.51862909]
[1757273536502,7.95,202.24,202.17,42.28337379]
[1757273536708,8.30452388,202.25,202.17,3.98337379]
[1757273537009,7.95,202.24,202.17,23.34337379]
[1757273537908,7.95,202.24,202.18,4.51935899]
[1757273538107,7.95,202.24,202.17,23.34337379]
[1757273538304,7.95,202.24,202.18,4.51945773]
[1757273538504,7.95,202.24,202.17,23.34337379]
[1757273538705,7.95,202.24,202.18,4.51952732]
[1757273538906,7.95,202.24,202.17,23.34337379]
[1757273539107,7.95,202.24,202.18,4.51952732]
[1757273539303,7.95,202.24,202.17,23.34337379]
[1757273539510,7.95,202.24,202.18,4.51969816]
[1757273539707,7.95,202.24,202.17,23.34337379]
[1757273540007,7.95,202.24,202.18,4.51969816]
[1757273540207,7.95,202.24,202.17,23.34337379]
[1757273540507,7.95,202.24,202.18,4.51949378]
[1757273540708,16.25452388,202.21,202.13,3.08337379]
[1757273540909,16.25452388,202.21,202.14,4.52232187]
[1757273541211,7.95,202.2,202.13,56.52]
[1757273541610,16.25452388,202.2,202.13,0.9]
[1757273541811,16.25452388,202.2,202.13,121.6]
[1757273542307,7.95,202.2,202.13,121.6]
[1757273543816,8.30452388,202.19,202.11,0.9]
[1757273544113,7.95,202.2,202.14,3.08337379]
[1757273544310,7.95,202.2,202.14,3.98337379]
[1757273548613,5.53064273,202.19,202.14,3.98337379]
[1757273548806,5.53064273,202.19,202.14,3.08337379]
[1757273549003,13.48064273,202.19,202.15,0.9]
[1757273549413,5.53064273,202.19,202.15,0.9]
[1757273549713,7.95,202.18,202.15,0.9]
[1757273550311,5.53064273,202.19,202.15,0.9]
[1757273550513,5.53064273,202.19,202.14,123.92337379]
[1757273550713,5.53064273,202.19,202.14,124.82337379]
[1757273551812,7.95,202.19,202.14,124.82337379]
[1757273552216,7.95,202.2,202.14,124.82337379]
[1757273552415,7.95,202.2,202.14,123.92337379]
[1757273553012,7.95,202.2,202.15,0.9]
[1757273553318,7.95,202.2,202.14,123.92337379]
[1757273553815,7.95,202.2,202.15,0.9]
[1757273554211,7.95,202.2,202.14,123.92337379]
[1757273554606,7.95,202.23,202.16,0.9]
[1757273555011,7.95,202.23,202.17,3.08337379]
[1757273555417,8.09,202.24,202.18,0.9]
[1757273560319,5.53064273,202.25,202.2,1.97320528]
[1757273561919,8.09,202.24,202.2,1.97320528]
[1757273562115,5.53064273,202.25,202.2,1.97320528]
[1757273562316,8.09,202.24,202.2,1.97320528]
[1757273562520,8.09,202.24,202.2,2.87320528]
[1757273562717,5.53064273,202.25,202.2,1.97320528]
[1757273563120,8.09,202.24,202.2,1.97320528]
[1757273563322,8.09,202.24,202.17,0.9]
[1757273563513,8.09,202.24,202.21,1.97320528]
[1757273563820,5.53064273,202.25,202.21,1.97320528]
[1757273564319,8.09,202.24,202.21,1.97320528]
[1757273564516,5.53064273,202.25,202.21,1.97320528]
[1757273565121,8.09,202.24,202.21,1.97320528]
[1757273565621,5.53064273,202.25,202.21,1.97320528]
[1757273565816,8.09,202.24,202.1,0.9]
[1757273566021,13.62064273,202.24,202.18,1.97320528]
[1757273566324,5.53064273,202.24,202.18,1.97320528]
[1757273566720,8.09,202.23,202.18,1.97320528]
[1757273568326,13.62064273,202.23,202.18,1.97320528]
[1757273568921,5.53064273,202.22,202.18,1.97320528]
[1757273569118,8.09,202.21,202.18,1.97320528]
[1757273569317,5.53064273,202.22,202.18,1.97320528]
[1757273569927,8.09,202.21,202.18,1.97320528]
[1757273570128,8.09,202.2,202.18,1.97320528]
[1757273570331,5.53064273,202.21,202.18,1.97320528]
[1757273571032,8.09,202.2,202.18,1.97320528]
[1757273571227,5.53064273,202.21,202.18,1.97320528]
[1757273571631,8.09,202.2,202.18,1.97320528]
[1757273571831,5.53064273,202.21,202.18,1.97320528]
[1757273572033,8.09,202.2,202.18,1.97320528]
[1757273572530,5.53064273,202.21,202.18,1.97320528]
[1757273573034,8.30452388,202.21,202.13,49.2]
[1757273573227,8.09,202.17,202.15,1.97320528]
[1757273573431,13.6315075,202.17,202.15,1.97320528]
[1757273574232,8.09,202.17,202.15,1.97320528]
[1757273576528,8.09,202.17,202.16,4.50356127]
[1757273580234,5.5415075,202.18,202.16,4.50356127]
[1757273580541,5.5415075,202.2,202.18,0.9]
[1757273580736,5.5415075,202.2,202.19,1.97320528]
[1757273581038,13.6315075,202.2,202.19,1.97320528]
[1757273581239,16.39452388,202.2,202.19,1.97320528]
[1757273581441,11.05965468,202.25,202.17,1.97320528]
[1757273581442,8.09,202.23,202.17,1.97320528]
[1757273581643,8.09,202.18,202.17,1.97320528]
[1757273583244,8.09,202.18,202.17,6.49562575]
[1757273583648,13.6391232,202.18,202.17,6.49562575]
[1757273583948,8.09,202.18,202.17,6.49562575]
[1757273587343,5.5491232,202.2,202.17,6.49562575]
[1757273587539,13.2591232,202.2,202.19,1.97320528]
[1757273587746,13.2591232,202.2,202.19,6.49562575]
[1757273590447,7.71,202.2,202.19,6.49562575]
[1757273591247,7.71,202.2,202.19,1.97320528]
[1757273592648,13.2591232,202.2,202.19,1.97320528]
[1757273593252,7.71,202.2,202.19,1.97320528]
[1757273594549,13.2591232,202.2,202.12,0.89]
[1757273594755,7.71,202.2,202.19,1.97320528]
[1757273595052,13.2591232,202.2,202.19,1.97320528]
[1757273596050,7.71,202.19,202.13,0.89]
[1757273596252,7.71,202.15,202.14,1.97320528]
[1757273597055,13.26425288,202.15,202.14,1.97320528]
[1757273601148,7.71,202.15,202.14,1.97320528]
[1757273601348,13.26425288,202.17,202.14,2.86320528]
[1757273601548,7.71,202.17,202.16,1.97320528]
[1757273602154,5.55425288,202.18,202.16,1.97320528]
[1757273602659,7.71,202.19,202.16,1.97320528]
[1757273602859,7.71,202.19,202.18,1.97320528]
[1757273608971,5.55425288,202.2,202.09,0.86105578]
[1757273609269,7.71,202.17,202.16,1.97320528]
[1757273609461,13.26425288,202.17,202.16,1.97320528]
[1757273609662,7.71,202.17,202.16,1.97320528]
[1757273609858,7.71,202.17,202.11,0.89]
[1757273609859,8.33137932,202.19,202.13,1.97320528]
[1757273610067,5.55377404,202.16,202.13,1.97320528]
[1757273610264,5.55377404,202.16,202.14,4.51748488]
[1757273610468,7.71,202.15,202.13,1.97320528]
[1757273610767,7.71,202.15,202.14,4.51882649]
[1757273611764,5.55377404,202.16,202.14,5.40882649]
[1757273612071,5.55377404,202.16,202.15,7.38203177]
[1757273613873,5.55377404,202.18,202.15,7.38203177]
[1757273614070,13.26377404,202.18,202.17,1.97320528]
[1757273614374,13.26377404,202.18,202.17,10.95783455]
[1757273614767,5.55377404,202.18,202.17,11.85783455]
[1757273614966,19.39642291,202.36,202.17,11.85783455]
[1757273614967,5.55377404,202.2,202.18,0.9]
[1757273615165,5.55377404,202.21,202.2,2.87320528]
[1757273615377,5.55377404,202.22,202.21,0.9]
[1757273615573,5.55377404,202.22,202.21,11.85783455]
[1757273615974,5.55377404,202.23,202.21,11.85783455]
[1757273616172,13.25377404,202.23,202.22,4.51882649]
[1757273618972,13.25377404,202.23,202.21,1.97320528]
[1757273619278,7.7,202.22,202.21,1.97320528]
[1757273619576,7.7,202.22,202.21,6.48481901]
[1757273622385,7.7,202.22,202.21,4.51161373]
[1757273622674,7.7,202.21,202.19,3.08250161]
[1757273623570,7.7,202.2,202.19,3.08250161]
[1757273623770,7.7,202.2,202.19,11.90688764]
[1757273625080,7.7,202.22,202.19,11.90688764]
[1757273625381,7.7,202.22,202.2,8.82438603]
[1757273625581,7.7,202.22,202.21,4.5333754]
[1757273627081,7.7,202.21,202.18,120.7]
[1757273627284,7.7,202.21,202.19,8.82338225]
[1757273627482,7.7,202.21,202.2,4.53250071]
[1757273628286,7.7,202.21,202.17,3.08250161]
[1757273628482,5.54852167,202.18,202.14,3.08250161]
[1757273628685,7.7,202.17,202.16,120.68]
[1757273628979,5.54852167,202.18,202.17,0.9]
[1757273629177,5.54852167,202.19,202.17,8.51731426]
[1757273629374,8.33137932,202.21,202.18,120.68]
[1757273629576,7.7,202.19,202.18,120.68]
[1757273631788,7.7,202.19,202.17,123.76250161]
[1757273631986,5.5485685,202.18,202.17,123.76250161]
[1757273632386,5.5485685,202.18,202.17,3.08250161]
[1757273632685,5.5485685,202.18,202.17,123.76250161]
[1757273633184,5.5485685,202.18,202.17,124.66250161]
[1757273634388,5.5485685,202.18,202.17,129.0961215]
[1757273635586,5.5485685,202.19,202.17,132.7301257]
[1757273635786,5.5485685,202.19,202.18,0.9]
[1757273636689,5.5485685,202.21,202.18,9.88727694]
[1757273636878,13.2485685,202.21,202.19,129.66727694]
[1757273637077,7.7,202.21,202.2,4.43164467]
[1757273637276,13.2485685,202.21,202.18,0.9]
[1757273637478,7.7,202.21,202.19,8.98685524]
[1757273637681,7.7,202.21,202.2,4.4314379]
[1757273637884,7.7,202.21,202.19,24.3]
[1757273638087,13.2485685,202.21,202.19,24.3]
[1757273638688,7.7,202.21,202.19,24.3]
[1757273641392,7.7,202.21,202.2,4.43164031]
[1757273642790,8.33137932,202.22,202.2,0.9]
[1757273642993,8.33137932,202.22,202.19,0.9]
[1757273643392,16.03137932,202.22,202.19,0.9]
[1757273643593,16.03137932,202.22,202.2,4.91243613]
[1757273643794,16.03137932,202.22,202.19,0.9]
[1757273643998,13.24824162,202.22,202.2,9.34358869]
[1757273644296,13.24824162,202.22,202.21,9.34374797]
[1757273644691,13.24824162,202.22,202.21,4.43286787]
[1757273646095,5.54824162,202.23,202.21,4.43286787]
[1757273646295,5.54824162,202.23,202.22,4.43286787]
[1757273646899,5.54824162,202.23,202.22,5.33286787]
[1757273647099,7.93,202.26,202.18,0.9]
[1757273647300,7.93,202.21,202.19,4.48634635]
[1757273647500,7.93,202.21,202.17,77.74250161]
[1757273647700,5.55055259,202.19,202.18,10.15698464]
[1757273648203,7.93,202.19,202.18,4.77093261]
[1757273654501,5.5484368,202.2,202.19,0.9]
[1757273654699,5.5484368,202.21,202.19,9.25627236]
[1757273654900,5.5484368,202.21,202.2,10.15627236]
[1757273655107,5.5484368,202.22,202.2,10.15627236]
[1757273655407,5.5484368,202.22,202.21,9.25627236]
[1757273655605,13.4784368,202.22,202.21,4.77093261]
[1757273655905,7.93,202.22,202.21,4.77093261]
[1757273656098,13.47824958,202.22,202.21,4.77093261]
[1757273657902,16.25582889,202.22,202.17,93.94]
[1757273658103,5.55011331,202.19,202.18,5.68219588]
[1757273658501,5.55011331,202.19,202.18,4.78219588]
[1757273658700,7.93,202.19,202.18,4.78219588]
[1757273662405,13.48042844,202.19,202.18,4.78219588]
[1757273662605,5.55042844,202.2,202.18,9.15198249]
[1757273662809,5.55042844,202.21,202.19,10.05198249]
[1757273663005,5.55042844,202.22,202.21,0.9]
[1757273663199,5.55042844,202.22,202.21,5.68219588]
[1757273663401,5.55042844,202.25,202.22,0.9]
[1757273663599,5.55042844,202.25,202.24,0.9]
[1757273663806,5.55042844,202.25,202.24,5.26842856]
[1757273664206,5.55042844,202.26,202.24,8.88868179]
[1757273664406,13.48042844,202.26,202.25,4.36842856]
[1757273664607,7.93,202.26,202.25,8.8883132]
[1757273665609,7.93,202.26,202.25,4.51988464]
[1757273665800,11.05965468,202.29,202.19,33.04]
[1757273666006,3.08250161,202.3,202.19,33.04]
[1757273666007,5.54913754,202.2,202.19,36.12250161]
[1757273666206,5.54913754,202.2,202.19,41.54987883]
[1757273666806,5.54913754,202.2,202.19,38.46737722]
[1757273667507,7.93,202.22,202.19,9.98561317]
[1757273667706,7.93,202.22,202.2,9.08561317]
[1757273667909,7.93,202.22,202.21,9.08561317]
[1757273672808,7.93,202.22,202.21,8.9626392]
[1757273674310,7.93,202.22,202.19,0.9]
[1757273674510,7.93,202.22,202.2,8.96246738]
[1757273674712,7.93,202.22,202.19,0.9]
[1757273675012,7.93,202.22,202.2,8.96299266]
[1757273675212,7.93,202.22,202.19,121.54]
[1757273675512,7.93,202.22,202.2,8.96312222]
[1757273675713,7.93,202.22,202.19,121.54]
[1757273675908,7.93,202.22,202.2,8.96312222]
[1757273676108,7.93,202.22,202.19,121.54]
[1757273676309,7.93,202.22,202.2,8.96324719]
[1757273676504,5.54913754,202.23,202.19,120.64]
[1757273676711,5.54913754,202.25,202.2,12.04581387]
[1757273676912,5.54913754,202.25,202.21,8.96331226]
[1757273677112,5.54913754,202.25,202.22,8.96331226]
[1757273677313,5.54913754,202.26,202.24,0.9]
[1757273678113,5.54913754,202.26,202.23,3.08250161]